Workbook

Sheet 员工信息
A2: 员工信息
A3: [公司名称]
A4: 员工 ID | B4: 员工姓名 | C4: 每小时工资 | D4: 税务状况 | E4: 联邦津贴 （来自 W-4） | F4: 州税 | G4: 联邦所得税 （基于联邦津贴） | H4: 社会保险税 | I4: 医疗保险税 | J4: 总扣缴税费 | K4: 保险扣除额 | L4: 其他常规扣除额 | M4: 总常规扣除额 （不含税费）
A5: 1 | B5: 卢宁 | C5: ¥10.00 | D5: 1 | E5: 4 | F5: 2.30% | G5: 28.00% | H5: 6.30% | I5: 1.45% | J5: =表1[[#This Row],[州税]]+表1[[#This Row],[联邦所得税 （基于联邦津贴）]]+表1[[#This Row],[社会保险税]]+表1[[#This Row],[医疗保险税]] -> 38.05% | K5: ¥20.00 | L5: ¥40.00 | M5: =表1[[#This Row],[保险扣除额]]+表1[[#This Row],[其他常规扣除额]] -> ¥60.00
A6: 2 | B6: 柯攸 | C6: ¥13.00 | D6: 1 | E6: 4 | F6: 2.30% | G6: 28.00% | H6: 6.30% | I6: 1.45% | J6: =表1[[#This Row],[州税]]+表1[[#This Row],[联邦所得税 （基于联邦津贴）]]+表1[[#This Row],[社会保险税]]+表1[[#This Row],[医疗保险税]] -> 38.05% | K6: ¥20.00 | L6: ¥52.00 | M6: =表1[[#This Row],[保险扣除额]]+表1[[#This Row],[其他常规扣除额]] -> ¥72.00
A7: 3 | B7: 康霓 | C7: ¥10.00 | D7: 1 | E7: 4 | F7: 2.30% | G7: 28.00% | H7: 6.30% | I7: 1.45% | J7: =表1[[#This Row],[州税]]+表1[[#This Row],[联邦所得税 （基于联邦津贴）]]+表1[[#This Row],[社会保险税]]+表1[[#This Row],[医疗保险税]] -> 38.05% | K7: ¥20.00 | L7: 0 | M7: =表1[[#This Row],[保险扣除额]]+表1[[#This Row],[其他常规扣除额]] -> ¥20.00

Sheet 工资计算器
A1: 工资计算器
J2: 截止日期： | K2: 4568800.00%
A3: =员工信息!$A$3 -> [公司名称]
A4: 员工 ID | B4: 员工姓名 | C4: 正常工作时数 | D4: 休假小时数 | E4: 病假小时数 | F4: 加班小时数 | G4: 加班工资率 | H4: 工资总额 | I4: 税费和扣除额 | J4: 其他扣除额 | K4: 实发工资
A5: 1 | B5: =VLOOKUP(A5,表1[],2,FALSE) -> 卢宁 | C5: 50.00 | D5: 5.00 | E5: 1.00 | H5: =(VLOOKUP(A5,表1[],3,FALSE)*(表2[[#This Row],[正常工作时数]]+表2[[#This Row],[休假小时数]]+表2[[#This Row],[病假小时数]])+表2[[#This Row],[加班小时数]]*表2[[#This Row],[加班工资率]]) -> ¥560.00 | I5: =VLOOKUP(A5,表1[],10,FALSE)*表2[[#This Row],[工资总额]]+表1[[#This Row],[总常规扣除额 （不含税费）]] -> ¥273.08 | J5: ¥20.00 | K5: =表2[[#This Row],[工资总额]]-表2[[#This Row],[税费和扣除额 ]]-表2[[#This Row],[其他扣除额]] -> ¥266.92
A6: 2 | B6: =VLOOKUP(A6,表1[],2,FALSE) -> 柯攸 | C6: 40.00 | D6: 0.00 | E6: 0.00 | H6: =(VLOOKUP(A6,表1[],3,FALSE)*(表2[[#This Row],[正常工作时数]]+表2[[#This Row],[休假小时数]]+表2[[#This Row],[病假小时数]])+表2[[#This Row],[加班小时数]]*表2[[#This Row],[加班工资率]]) -> ¥520.00 | I6: =VLOOKUP(A6,表1[],10,FALSE)*表2[[#This Row],[工资总额]]+表1[[#This Row],[总常规扣除额 （不含税费）]] -> ¥269.86 | J6: ¥52.00 | K6: =表2[[#This Row],[工资总额]]-表2[[#This Row],[税费和扣除额 ]]-表2[[#This Row],[其他扣除额]] -> ¥198.14
A7: 3 | B7: =VLOOKUP(A7,表1[],2,FALSE) -> 康霓 | C7: 52.00 | D7: 0.00 | E7: 0.00 | F7: 2.00 | G7: ¥20.00 | H7: =(VLOOKUP(A7,表1[],3,FALSE)*(表2[[#This Row],[正常工作时数]]+表2[[#This Row],[休假小时数]]+表2[[#This Row],[病假小时数]])+表2[[#This Row],[加班小时数]]*表2[[#This Row],[加班工资率]]) -> ¥560.00 | I7: =VLOOKUP(A7,表1[],10,FALSE)*表2[[#This Row],[工资总额]]+表1[[#This Row],[总常规扣除额 （不含税费）]] -> ¥233.08 | J7: ¥20.00 | K7: =表2[[#This Row],[工资总额]]-表2[[#This Row],[税费和扣除额 ]]-表2[[#This Row],[其他扣除额]] -> ¥306.92

Sheet 个人工资单
C2: =(员工信息!$A$3) -> [公司名称]
C3: 截止日期： | D3: =工资计算器!$K$2 -> 4568800.00% | E3: 员工姓名 | F3: =IFERROR(VLOOKUP(H3,表1[],2),"") -> 卢宁 | G3: 员工 ID | H3: 1
C5: 税务状况 | D5: =IFERROR(VLOOKUP(H3,表1[],4),"") -> 1 | E5: 联邦津贴（来自 W-4） | F5: =IFERROR(VLOOKUP(H3,表1[],5,FALSE),"") -> 4 | G5: 工作小时数 | H5: =IFERROR(VLOOKUP(H3,表2[],3,FALSE),"") -> 50
C6: 每小时工资率 | D6: =IFERROR(VLOOKUP(H3,表1[],3,FALSE),"") -> ¥10.00 | E6: 加班工资率 | F6: =IFERROR(VLOOKUP(H3,表2[],7,FALSE),"") -> 0 | G6: 病假小时数 | H6: =IFERROR(VLOOKUP(H3,表2[],5,FALSE),"") -> 1
C7: 社会保险税 | D7: =IFERROR(IFERROR(VLOOKUP(H3,表1[],8,FALSE),"")*H9,"") -> ¥35.28 | E7: 联邦所得税 | F7: =IFERROR(IFERROR(VLOOKUP(H3,表1[],7,FALSE),"")*H9,"") -> ¥156.80 | G7: 休假小时数 | H7: =IFERROR(VLOOKUP(H3,表2[],4,FALSE),"") -> 5
C8: 医疗保险税 | D8: =IFERROR(IFERROR(VLOOKUP(H3,表1[],9,FALSE),"")*H9,"") -> ¥8.12 | E8: 州税 | F8: =IFERROR(IFERROR(VLOOKUP(H3,表1[],6,FALSE),"")*H9,"") -> ¥12.88 | G8: 加班小时数 | H8: =IFERROR(VLOOKUP(H3,表2[],6,FALSE),"") -> 0
C9: 保险扣除额 | D9: =IFERROR(VLOOKUP(H3,表1[],11,FALSE),"") -> ¥20.00 | E9: 其他常规扣除额 | F9: =IFERROR(VLOOKUP(H3,表1[],12,FALSE),"") -> ¥40.00 | G9: 工资总额 | H9: =IFERROR(VLOOKUP(H3,表2[],8,FALSE),"") -> ¥560.00
C10: 总税费和常规扣除额 | D10: =IFERROR(SUM(F7:F9)+SUM(D7:D9),"") -> ¥273.08 | E10: 其他扣除额 | F10: =IFERROR(VLOOKUP(H3,表2[],10,FALSE),"") -> ¥20.00 | G10: 总税费和扣除额 | H10: =IFERROR(IFERROR(VLOOKUP(H3,表2[],9,FALSE),"")+F10,"") -> ¥293.08
G11: 实发工资 | H11: =IFERROR(VLOOKUP(H3,表2[],11,FALSE),"") -> ¥266.92
C14: =(员工信息!$A$3) -> [公司名称]
C15: 截止日期： | D15: =工资计算器!$K$2 -> 4568800.00% | E15: 员工姓名 | F15: =IFERROR(VLOOKUP(H15,表1[],2),"") -> 柯攸 | G15: 员工 ID | H15: 2
C17: 税务状况 | D17: =IFERROR(VLOOKUP(H15,表1[],4),"") -> 1 | E17: 联邦津贴（来自 W-4） | F17: =IFERROR(VLOOKUP(H15,表1[],5,FALSE),"") -> 4 | G17: 工作小时数 | H17: =IFERROR(VLOOKUP(H15,表2[],3,FALSE),"") -> 40
C18: 每小时工资率 | D18: =IFERROR(VLOOKUP(H15,表1[],3,FALSE),"") -> ¥13.00 | E18: 加班工资率 | F18: =IFERROR(VLOOKUP(H15,表2[],7,FALSE),"") -> 0 | G18: 病假小时数 | H18: =IFERROR(VLOOKUP(H15,表2[],5,FALSE),"") -> 0
C19: 社会保险税 | D19: =IFERROR(IFERROR(VLOOKUP(H15,表1[],8,FALSE),"")*H21,"") -> ¥32.76 | E19: 联邦所得税 | F19: =IFERROR(IFERROR(VLOOKUP(H15,表1[],7,FALSE),"")*H21,"") -> ¥145.60 | G19: 休假小时数 | H19: =IFERROR(VLOOKUP(H15,表2[],4,FALSE),"") -> 0
C20: 医疗保险税 | D20: =IFERROR(IFERROR(VLOOKUP(H15,表1[],9,FALSE),"")*H21,"") -> ¥7.54 | E20: 州税 | F20: =IFERROR(IFERROR(VLOOKUP(H15,表1[],6,FALSE),"")*H21,"") -> ¥11.96 | G20: 加班小时数 | H20: =IFERROR(VLOOKUP(H15,表2[],6,FALSE),"") -> 0
C21: 保险扣除额 | D21: =IFERROR(VLOOKUP(H15,表1[],11,FALSE),"") -> ¥20.00 | E21: 其他常规扣除额 | F21: =IFERROR(VLOOKUP(H15,表1[],12,FALSE),"") -> ¥52.00 | G21: 工资总额 | H21: =IFERROR(VLOOKUP(H15,表2[],8,FALSE),"") -> ¥520.00
C22: 总税费和常规扣除额 | D22: =IFERROR(SUM(F19:F21)+SUM(D19:D21),"") -> ¥269.86 | E22: 其他扣除额 | F22: =IFERROR(VLOOKUP(H15,表2[],10,FALSE),"") -> ¥52.00 | G22: 总税费和扣除额 | H22: =IFERROR(IFERROR(VLOOKUP(H15,表2[],9,FALSE),"")+F22,"") -> ¥321.86
G23: 实发工资 | H23: =IFERROR(VLOOKUP(H15,表2[],11,FALSE),"") -> ¥198.14
C26: =(员工信息!$A$3) -> [公司名称]
C27: 截止日期： | D27: =工资计算器!$K$2 -> 4568800.00% | E27: 员工姓名 | F27: =IFERROR(VLOOKUP(H27,表1[],2),"") -> 康霓 | G27: 员工 ID | H27: 3
C29: 税务状况 | D29: =IFERROR(VLOOKUP(H27,表1[],4),"") -> 1 | E29: 联邦津贴（来自 W-4） | F29: =IFERROR(VLOOKUP(H27,表1[],5,FALSE),"") -> 4 | G29: 工作小时数 | H29: =IFERROR(VLOOKUP(H27,表2[],3,FALSE),"") -> 52
C30: 每小时工资率 | D30: =IFERROR(VLOOKUP(H27,表1[],3,FALSE),"") -> ¥10.00 | E30: 加班工资率 | F30: =IFERROR(VLOOKUP(H27,表2[],7,FALSE),"") -> ¥20.00 | G30: 病假小时数 | H30: =IFERROR(VLOOKUP(H27,表2[],5,FALSE),"") -> 0
C31: 社会保险税 | D31: =IFERROR(IFERROR(VLOOKUP(H27,表1[],8,FALSE),"")*H33,"") -> ¥35.28 | E31: 联邦所得税 | F31: =IFERROR(IFERROR(VLOOKUP(H27,表1[],7,FALSE),"")*H33,"") -> ¥156.80 | G31: 休假小时数 | H31: =IFERROR(VLOOKUP(H27,表2[],4,FALSE),"") -> 0
C32: 医疗保险税 | D32: =IFERROR(IFERROR(VLOOKUP(H27,表1[],9,FALSE),"")*H33,"") -> ¥8.12 | E32: 州税 | F32: =IFERROR(IFERROR(VLOOKUP(H27,表1[],6,FALSE),"")*H33,"") -> ¥12.88 | G32: 加班小时数 | H32: =IFERROR(VLOOKUP(H27,表2[],6,FALSE),"") -> 2
C33: 保险扣除额 | D33: =IFERROR(VLOOKUP(H27,表1[],11,FALSE),"") -> ¥20.00 | E33: 其他常规扣除额 | F33: =IFERROR(VLOOKUP(H27,表1[],12,FALSE),"") -> 0 | G33: 工资总额 | H33: =IFERROR(VLOOKUP(H27,表2[],8,FALSE),"") -> ¥560.00
C34: 总税费和常规扣除额 | D34: =IFERROR(SUM(F31:F33)+SUM(D31:D33),"") -> ¥233.08 | E34: 其他扣除额 | F34: =IFERROR(VLOOKUP(H27,表2[],10,FALSE),"") -> ¥20.00 | G34: 总税费和扣除额 | H34: =IFERROR(IFERROR(VLOOKUP(H27,表2[],9,FALSE),"")+F34,"") -> ¥253.08
G35: 实发工资 | H35: =IFERROR(VLOOKUP(H27,表2[],11,FALSE),"") -> ¥306.92
C39: =(员工信息!$A$3) -> [公司名称]
C40: 截止日期： | D40: =工资计算器!$K$2 -> 4568800.00% | E40: 员工姓名 | F40: =IFERROR(VLOOKUP(H40,表1[],2),"") ->  | G40: 员工 ID
C42: 税务状况 | D42: =IFERROR(VLOOKUP(H40,表1[],4),"") ->  | E42: 联邦津贴（来自 W-4） | F42: =IFERROR(VLOOKUP(H40,表1[],5,FALSE),"") ->  | G42: 工作小时数 | H42: =IFERROR(VLOOKUP(H40,表2[],3,FALSE),"") -> 
C43: 每小时工资率 | D43: =IFERROR(VLOOKUP(H40,表1[],3,FALSE),"") ->  | E43: 加班工资率 | F43: =IFERROR(VLOOKUP(H40,表2[],7,FALSE),"") ->  | G43: 病假小时数 | H43: =IFERROR(VLOOKUP(H40,表2[],5,FALSE),"") -> 
C44: 社会保险税 | D44: =IFERROR(IFERROR(VLOOKUP(H40,表1[],8,FALSE),"")*H46,"") ->  | E44: 联邦所得税 | F44: =IFERROR(IFERROR(VLOOKUP(H40,表1[],7,FALSE),"")*H46,"") ->  | G44: 休假小时数 | H44: =IFERROR(VLOOKUP(H40,表2[],4,FALSE),"") -> 
C45: 医疗保险税 | D45: =IFERROR(IFERROR(VLOOKUP(H40,表1[],9,FALSE),"")*H46,"") ->  | E45: 州税 | F45: =IFERROR(IFERROR(VLOOKUP(H40,表1[],6,FALSE),"")*H46,"") ->  | G45: 加班小时数 | H45: =IFERROR(VLOOKUP(H40,表2[],6,FALSE),"") -> 
C46: 保险扣除额 | D46: =IFERROR(VLOOKUP(H40,表1[],11,FALSE),"") ->  | E46: 其他常规扣除额 | F46: =IFERROR(VLOOKUP(H40,表1[],12,FALSE),"") ->  | G46: 工资总额 | H46: =IFERROR(VLOOKUP(H40,表2[],8,FALSE),"") -> 
C47: 总税费和常规扣除额 | D47: =IFERROR(SUM(F44:F46)+SUM(D44:D46),"") -> 0 | E47: 其他扣除额 | F47: =IFERROR(VLOOKUP(H40,表2[],10,FALSE),"") ->  | G47: 总税费和扣除额 | H47: =IFERROR(IFERROR(VLOOKUP(H40,表2[],9,FALSE),"")+F47,"") -> 
G48: 实发工资 | H48: =IFERROR(VLOOKUP(H40,表2[],11,FALSE),"") -> 
